fUSD/lending_fUSD_20250617
["ID","MTS","AMOUNT","RATE_DAILY","PERIOD"]
[366340190,1750197966845,-150.17599446,0.00014918,2]
[366340191,1750197966870,-150.0,0.00014918,2]
[366340192,1750197966896,-250.0,0.00014948,2]
[366340193,1750197966923,-595.66094341,0.00014948,4]
[366340195,1750198092297,200.0,0.00013533,2]
[366340196,1750198093830,200.0,0.00016227,5]
[366340210,1750198231992,-200.0,0.00014206,2]
[366340211,1750198232003,-150.0,0.00014791,2]
[366340212,1750198232013,-1298.73,0.00014874,2]
[366340213,1750198232023,-200.0,0.0001488,3]
[366340214,1750198232034,-4.33905659,0.00014948,4]
[366340215,1750198232044,-250.0,0.00015,2]
[366340216,1750198232054,-367.53,0.00015044,2]
[366340217,1750198232064,-212.32759947,0.00015059,2]
[366340218,1750198232082,-101.04240053,0.00015059,2]
[366340219,1750198232092,-164.04325872,0.00015086,2]
[366340607,1750198238147,-501.95674128,0.00015086,2]
[366340608,1750198238157,-170.85,0.000151,2]
[366340609,1750198238167,-300.0,0.00015122,2]
[366340610,1750198238176,-1000.0,0.00015123,2]
[366340612,1750198238186,-184.44,0.00015123,2]
[366340614,1750198238195,-151.0,0.00015146,2]
[366340616,1750198238205,-300.0,0.00015155,2]
[366340618,1750198238215,-1200.0,0.00015155,2]
[366340620,1750198238224,-1841.04270889,0.00015156,2]
[366340622,1750198238241,-1901.83825835,0.00015156,2]
[366340627,1750198238274,-7906.01765501,0.00015156,2]
[366340629,1750198238286,-8113.30231727,0.00015156,2]
[366340633,1750198238316,-2517.8,0.00015156,2]
[366340717,1750198239814,-1619.99906048,0.00015156,2]
[366340718,1750198239823,-167.9,0.00015177,2]
[366340719,1750198239833,-443.3,0.0001519,2]
[366340720,1750198239842,-203.05935935,0.00015201,2]
[366340721,1750198239852,-150.0,0.00015211,2]
[366340722,1750198239863,-155.0,0.0001526,2]
[366340723,1750198239873,-235.0,0.00015274,2]
[366340724,1750198239883,-150.0,0.00015295,2]
[366340725,1750198239893,-170.85,0.000153,2]
[366340726,1750198239903,-455.27,0.000153,2]
[366340727,1750198239913,-1595.02,0.000153,2]
[366340728,1750198239923,-150.0,0.000153,2]
[366340729,1750198239933,-455.27,0.00015343,2]
[366340730,1750198239943,-455.27,0.00015343,2]
[366340731,1750198239953,-150.0,0.00015378,2]
[366340732,1750198239963,-150.0,0.00015378,2]
[366340733,1750198239972,-150.0,0.00015398,2]
[366340734,1750198239982,-150.0,0.00015407,2]
[366340735,1750198239992,-159.0,0.00015417,2]
[366340736,1750198240002,-267.0,0.00015432,2]
[366340737,1750198240011,-500.0,0.00015534,2]
[366340738,1750198240020,-200.0,0.00015553,4]
[366340739,1750198240031,-150.0,0.00015567,2]
[366340740,1750198240041,-151.0,0.00015641,2]
[366340741,1750198240051,-151.0,0.00015641,2]
[366340742,1750198240061,-253.77639371,0.00015641,2]
[366340743,1750198240076,-169.81644367,0.00015641,2]
[366340744,1750198240085,-207.4,0.00015641,2]
[366340745,1750198240095,-150.0,0.00015642,2]
[366340746,1750198240105,-908.85,0.00015665,2]
[366340747,1750198240114,-165.5,0.00015665,2]
[366340748,1750198240124,-455.27,0.00015665,2]
[366340749,1750198240133,-170.85,0.00015665,2]
[366340750,1750198240145,-150.0,0.0001568,2]
[366340751,1750198240155,-750.63470528,0.00015685,2]
[366340752,1750198240165,-150.0,0.00015693,2]
[366340753,1750198240174,-789.99284083,0.00015694,2]
[366340754,1750198240184,-455.27,0.000157,2]
[366340755,1750198240194,-150.0,0.00015725,2]
[366340756,1750198240204,-150.0,0.00015745,2]
[366340757,1750198240213,-150.0,0.00015774,2]
[366340758,1750198240223,-648.03107008,0.000158,2]
[366340759,1750198240262,-102.6036352,0.000158,2]
[366340760,1750198240272,-378.10985613,0.00015816,2]
[366340761,1750198240284,-83.57014387,0.00015816,2]
[366340762,1750198240294,-150.0,0.00015823,2]
[366340763,1750198240304,-150.0,0.00015838,2]
[366340764,1750198240314,-150.0,0.00015856,2]
[366340765,1750198240324,-321.35158142,0.00015858,2]
[366340766,1750198240333,-1164.87,0.0001587,2]
[366340767,1750198240343,-1164.87,0.0001587,2]
[366340768,1750198240353,-1164.87,0.0001587,2]
[366340769,1750198240363,-1720.22,0.0001587,2]
[366340770,1750198240373,-300.0,0.00015873,2]
[366340771,1750198240383,-250.0,0.00015873,2]
[366340772,1750198240399,-600.0,0.00015873,4]
[366340773,1750198240409,-300.0,0.00015873,2]
[366340774,1750198240419,-250.0,0.00015873,2]
[366340775,1750198240429,-600.0,0.00015873,4]
[366340776,1750198240438,-150.0,0.00015898,2]
[366340777,1750198240449,-1203.14627714,0.000159,2]
[366340778,1750198240459,-406.36077028,0.00015928,2]
[366340779,1750198240469,-1203.14627703,0.00016038,2]
[366340780,1750198240479,-150.0,0.00016088,2]
[366340781,1750198240489,-300.0,0.0001611,2]
[366340782,1750198240499,-150.0,0.00016111,2]
[366340783,1750198240508,-150.0,0.00016131,2]
[366340784,1750198240518,-150.0,0.00016136,2]
[366340785,1750198240528,-170.85,0.00016165,2]
[366340786,1750198240538,-455.27,0.00016165,2]
[366340787,1750198240547,-170.85,0.00016165,2]
[366340788,1750198240558,-170.85,0.00016165,2]
[366340789,1750198240567,-1203.14627703,0.00016176,2]
[366340790,1750198240577,-150.0,0.00016177,2]
[366340791,1750198240587,-151.0,0.00016201,2]
[366340792,1750198240597,-151.0,0.00016201,2]
[366340793,1750198240616,-151.0,0.00016201,2]
[366340794,1750198240629,-871.05253986,0.00016201,2]
[366340795,1750198240645,-326.94746014,0.00016201,2]
[366340796,1750198240654,-151.0,0.00016201,2]
[366340797,1750198240664,-1198.0,0.00016201,2]
[366340798,1750198240674,-150.0,0.0001623,2]
[366340799,1750198240684,-6443.7957,0.00016238,2]
[366340800,1750198240694,-150.0,0.00016244,2]
[366340801,1750198240704,-150.0,0.00016269,2]
[366340802,1750198240717,-1203.14627703,0.00016314,2]
[366340803,1750198240727,-155.0,0.00016327,2]
[366340804,1750198240736,-446.11056283,0.00016327,2]
[366340805,1750198240748,-437.88943717,0.00016327,2]
[366340806,1750198240759,-185.42995304,0.00016338,2]
[366340807,1750198240925,-355.7702966,0.00016338,2]
[366340808,1750198240941,-162.0909551,0.00016338,2]
[366340809,1750198240951,-527.176907,0.00016338,2]
[366340810,1750198240960,-153.30662137,0.00016338,2]
[366340811,1750198240970,-294.51999209,0.00016338,2]
[366340812,1750198240980,-1477.09818763,0.00016338,2]
[366340813,1750198240997,-1536.63404314,0.00016338,2]
[366340814,1750198241012,-297.18,0.00016338,2]
[366340815,1750198241027,-2983.50219833,0.00016338,2]
[366340816,1750198241037,-6781.42310901,0.00016338,2]
[366340817,1750198241048,-500.0,0.00016338,2]
[366340818,1750198241058,-15504.8041,0.00016338,2]
[366340819,1750198241069,-4620.40700146,0.00016338,2]
[366340820,1750198241103,-6828.10439854,0.00016338,2]
[366340821,1750198241113,-1000.0,0.00016338,2]
[366340822,1750198241123,-4336.8454,0.00016338,2]
[366340823,1750198241133,-2500.0,0.00016338,2]
[366340824,1750198241145,-647.11707419,0.0001634,2]
[366340825,1750198241155,-150.0,0.00016346,2]
[366340826,1750198241165,-153.30662129,0.0001636,2]
[366340827,1750198241175,-150.0,0.00016366,2]
[366340828,1750198241186,-1683.207,0.00016367,2]
[366340829,1750198241196,-833.87704394,0.00016369,2]
[366340830,1750198241206,-150.0,0.00016379,2]
[366340831,1750198241215,-153.30662129,0.00016382,2]
[366340832,1750198241225,-6294.41442909,0.00016393,2]
[366340833,1750198241235,-6781.42310899,0.00016393,2]
[366340834,1750198241245,-793.34717188,0.000164,2]
[366340835,1750198241255,-153.30662129,0.00016404,2]
[366340836,1750198241265,-150.0,0.00016423,2]
[366340837,1750198241275,-153.30662129,0.00016426,2]
[366340838,1750198241286,-291.80510267,0.00016428,2]
[366340839,1750198241296,-182.44,0.00016428,2]
[366340840,1750198241306,-150.0,0.00016433,2]
[366340841,1750198241316,-500.0,0.00016437,2]
[366340842,1750198241326,-178.61342476,0.00016437,2]
[366340843,1750198241335,-500.0,0.00016437,2]
[366340844,1750198241344,-500.0,0.00016437,2]
[366340845,1750198241354,-500.0,0.00016437,2]
[366340846,1750198241365,-229.95497812,0.00016437,2]
[366340847,1750198241375,-194.37191062,0.00016437,2]
[366340848,1750198241385,-623.5217274,0.00016437,2]
[366340849,1750198241396,-303.04505446,0.00016437,2]
[366340850,1750198241406,-500.0,0.00016437,2]
[366340851,1750198241415,-500.0,0.00016437,2]
[366340852,1750198241425,-500.0,0.00016437,2]
[366340853,1750198241434,-181.34,0.00016437,2]
[366340854,1750198241445,-286.17436629,0.00016438,2]
[366340855,1750198241455,-51896.78973417,0.00016438,2]
[366340856,1750198241464,-840.0,0.00016438,2]
[366340857,1750198241474,-151.0,0.00016438,2]
[366340858,1750198241483,-151.0,0.00016438,2]
[366340859,1750198241493,-151.0,0.00016438,2]
[366340860,1750198241502,-151.0,0.00016438,2]
[366340861,1750198241511,-151.0,0.00016438,2]
[366340862,1750198241521,-199.144488,0.00016438,2]
[366340863,1750198241530,-151.0,0.00016438,2]
[366340864,1750198241540,-151.0,0.00016438,2]
[366340865,1750198241550,-151.0,0.00016438,2]
[366340866,1750198241560,-151.0,0.00016438,2]
[366340867,1750198241570,-163.289306,0.00016438,2]
[366340868,1750198241579,-151.0,0.00016438,2]
[366340869,1750198241589,-151.0,0.00016438,2]
[366340870,1750198241599,-151.0,0.00016438,2]
[366340871,1750198241608,-151.0,0.00016438,2]
[366340872,1750198241618,-151.0,0.00016438,2]
[366340873,1750198241627,-209.164274,0.00016438,2]
[366340874,1750198241638,-151.0,0.00016438,2]
[366340875,1750198241648,-490.0,0.00016438,2]
[366340876,1750198241659,-151.0,0.00016438,2]
[366340877,1750198241668,-334.57622797,0.00016438,2]
[366340878,1750198241679,-151.0,0.00016438,2]
[366340879,1750198241688,-151.0,0.00016438,2]
[366340880,1750198241698,-370.0,0.00016438,2]
[366340881,1750198241710,-490.0,0.00016438,2]
[366340882,1750198241720,-151.0,0.00016438,2]
[366340883,1750198241730,-151.0,0.00016438,2]
[366340884,1750198241740,-151.0,0.00016438,2]
[366340885,1750198241751,-151.0,0.00016438,2]
[366340886,1750198241760,-151.0,0.00016438,2]
[366340887,1750198241770,-151.0,0.00016438,2]
[366340888,1750198241780,-490.0,0.00016438,2]
[366340889,1750198241791,-490.0,0.00016438,2]
[366340890,1750198241801,-490.0,0.00016438,2]
[366340891,1750198241819,-490.0,0.00016438,2]
[366340892,1750198241830,-490.0,0.00016438,2]
[366340893,1750198241841,-490.0,0.00016438,2]
[366340894,1750198241852,-490.0,0.00016438,2]
[366340895,1750198241863,-490.0,0.00016438,2]
[366340896,1750198241874,-661.55,0.00016438,2]
[366340897,1750198241884,-1008.13,0.00016438,2]
[366340898,1750198241896,-635.81,0.00016438,2]
[366340899,1750198241906,-490.0,0.00016438,2]
[366340900,1750198241916,-490.0,0.00016438,2]
[366340901,1750198241926,-589.07,0.00016438,2]
[366340902,1750198241936,-490.0,0.00016438,2]
[366340903,1750198241947,-490.0,0.00016438,2]
[366340904,1750198241956,-608.99,0.00016438,2]
[366340905,1750198241966,-585.9158547,0.00016438,2]
[366340906,1750198241975,-490.0,0.00016438,2]
[366340907,1750198241986,-490.0,0.00016438,2]
[366340908,1750198241997,-490.0,0.00016438,2]
[366340909,1750198242007,-490.0,0.00016438,2]
[366340910,1750198242016,-490.0,0.00016438,2]
[366340911,1750198242026,-567.71,0.00016438,2]
[366340912,1750198242035,-490.0,0.00016438,2]
[366340913,1750198242045,-597.79,0.00016438,2]
[366340914,1750198242054,-490.0,0.00016438,2]
[366340915,1750198242064,-490.0,0.00016438,2]
[366340916,1750198242074,-490.0,0.00016438,2]
[366340917,1750198242084,-151.0,0.00016438,2]
[366340918,1750198242094,-151.0,0.00016438,2]
[366340919,1750198242104,-151.0,0.00016438,2]
[366340920,1750198242113,-151.0,0.00016438,2]
[366340921,1750198242123,-490.0,0.00016438,2]
[366340922,1750198242133,-587.81,0.00016438,2]
[366340923,1750198242144,-151.0,0.00016438,2]
[366340924,1750198242153,-286.16896,0.00016438,2]
[366340925,1750198242163,-490.0,0.00016438,2]
[366340926,1750198242172,-632.05,0.00016438,2]
[366340927,1750198242182,-490.0,0.00016438,2]
[366340928,1750198242192,-151.0,0.00016438,2]
[366340929,1750198242202,-490.0,0.00016438,2]
[366340930,1750198242211,-490.0,0.00016438,2]
[366340931,1750198242221,-490.0,0.00016438,2]
[366340932,1750198242231,-822.45,0.00016438,2]
[366340933,1750198242241,-490.0,0.00016438,2]
[366340934,1750198242251,-490.0,0.00016438,2]
[366340935,1750198242261,-151.0,0.00016438,2]
[366340936,1750198242271,-212.467748,0.00016438,2]
[366340937,1750198242281,-490.0,0.00016438,2]
[366340938,1750198242290,-151.0,0.00016438,2]
[366340939,1750198242300,-490.0,0.00016438,2]
[366340940,1750198242309,-151.0,0.00016438,2]
[366340941,1750198242319,-151.0,0.00016438,2]
[366340942,1750198242329,-490.0,0.00016438,2]
[366340943,1750198242339,-490.0,0.00016438,2]
[366340944,1750198242349,-460.0,0.00016438,2]
[366340945,1750198242358,-490.0,0.00016438,2]
[366340946,1750198242368,-460.0,0.00016438,2]
[366340947,1750198242377,-490.0,0.00016438,2]
[366340948,1750198242387,-490.0,0.00016438,2]
[366340949,1750198242396,-490.0,0.00016438,2]
[366340950,1750198242407,-490.0,0.00016438,2]
[366340951,1750198242416,-490.0,0.00016438,2]
[366340952,1750198242426,-490.0,0.00016438,2]
[366340953,1750198242436,-490.0,0.00016438,2]
[366340954,1750198242446,-490.0,0.00016438,2]
[366340955,1750198242456,-490.0,0.00016438,2]
[366340956,1750198242467,-1468.56,0.00016438,2]
[366340957,1750198242477,-502.18,0.00016438,2]
[366340958,1750198242488,-740.84,0.00016438,2]
[366340960,1750198242497,-151.0,0.00016438,2]
[366340961,1750198242508,-490.0,0.00016438,2]
[366340962,1750198242518,-151.0,0.00016438,2]
[366340963,1750198242528,-151.0,0.00016438,2]
[366340964,1750198242538,-151.0,0.00016438,2]
[366340965,1750198242548,-290.11222,0.00016438,2]
[366340966,1750198242558,-490.0,0.00016438,2]
[366340967,1750198242568,-777.05,0.00016438,2]
[366340968,1750198242578,-490.0,0.00016438,2]
[366340969,1750198242588,-886.01,0.00016438,2]
[366340970,1750198242599,-490.0,0.00016438,2]
[366340971,1750198242609,-436.36621651,0.00016438,2]
[366340973,1750198242620,-490.0,0.00016438,2]
[366340974,1750198242630,-490.0,0.00016438,2]
[366340975,1750198242643,-965.67,0.00016438,2]
[366340976,1750198242653,-490.0,0.00016438,2]
[366340977,1750198242663,-490.0,0.00016438,2]
[366340979,1750198242672,-490.0,0.00016438,2]
[366340981,1750198242682,-490.0,0.00016438,2]
[366340983,1750198242692,-490.0,0.00016438,2]
[366340985,1750198242703,-490.0,0.00016438,2]
[366340987,1750198242714,-490.0,0.00016438,2]
[366340989,1750198242724,-582.0483631,0.00016438,2]
[366340991,1750198242735,-384.4386509,0.00016438,2]
[366340993,1750198242744,-151.0,0.00016438,2]
[366340995,1750198242755,-151.0,0.00016438,2]
[366340997,1750198242765,-490.0,0.00016438,2]
[366340998,1750198242775,-151.0,0.00016438,2]
[366341000,1750198242784,-490.0,0.00016438,2]
[366341002,1750198242795,-151.0,0.00016438,2]
[366341004,1750198242806,-490.0,0.00016438,2]
[366341006,1750198242815,-151.0,0.00016438,2]
[366341007,1750198242825,-257.573096,0.00016438,2]
[366341008,1750198242836,-490.0,0.00016438,2]
[366341009,1750198242846,-1150.3,0.00016438,2]
[366341010,1750198242856,-490.0,0.00016438,2]
[366341011,1750198242866,-490.0,0.00016438,2]
[366341012,1750198242876,-490.0,0.00016438,2]
[366341013,1750198242886,-490.0,0.00016438,2]
[366341014,1750198242896,-490.0,0.00016438,2]
[366341015,1750198242906,-490.0,0.00016438,2]
[366341016,1750198242916,-490.0,0.00016438,2]
[366341017,1750198242926,-490.0,0.00016438,2]
[366341018,1750198242936,-151.0,0.00016438,2]
[366341019,1750198242946,-151.0,0.00016438,2]
[366341020,1750198242956,-93.42233097,0.00016438,2]
[366341021,1750198242986,-57.57766903,0.00016438,2]
[366341022,1750198242996,-490.0,0.00016438,2]
[366341023,1750198243006,-490.0,0.00016438,2]
[366341024,1750198243016,-490.0,0.00016438,2]
[366341025,1750198243025,-32.07067723,0.00016438,2]
[366341026,1750198243043,-457.92932277,0.00016438,2]
[366341027,1750198243053,-490.0,0.00016438,2]
[366341028,1750198243063,-386.02740259,0.00016438,2]
[366341029,1750198243072,-634.53,0.00016438,2]
[366341030,1750198243082,-490.0,0.00016438,2]
[366341031,1750198243092,-490.0,0.00016438,2]
[366341032,1750198243101,-490.0,0.00016438,2]
[366341033,1750198243111,-780.47,0.00016438,2]
[366341034,1750198243121,-490.0,0.00016438,2]
[366341037,1750198243131,-490.0,0.00016438,2]
[366341039,1750198243141,-490.0,0.00016438,2]
[366341041,1750198243150,-302.52323392,0.00016438,2]
[366341043,1750198243160,-490.0,0.00016438,2]
[366341045,1750198243169,-498.45,0.00016438,2]
[366341046,1750198243179,-430.0,0.00016438,2]
[366341047,1750198243188,-400.0,0.00016438,2]
[366341048,1750198243198,-616.96,0.00016438,2]
[366341049,1750198243208,-490.0,0.00016438,2]
[366341050,1750198243218,-490.0,0.00016438,2]
[366341051,1750198243227,-513.99,0.00016438,2]
[366341052,1750198243237,-490.0,0.00016438,2]
[366341053,1750198243247,-503.29,0.00016438,2]
[366341054,1750198243256,-490.0,0.00016438,2]
[366341055,1750198243266,-231.093228,0.00016438,2]
[366341056,1750198243276,-490.0,0.00016438,2]
[366341057,1750198243285,-490.0,0.00016438,2]
[366341058,1750198243295,-257.93553881,0.00016438,2]
[366341059,1750198243311,-259.97931304,0.00016438,2]
[366341060,1750198243320,-460.0,0.00016438,2]
[366341061,1750198243330,-214.35710845,0.00016438,2]
[366341062,1750198243342,-411.57289155,0.00016438,2]
[366341063,1750198243352,-8.19949816,0.00016438,2]
[366341064,1750198243364,-481.80050184,0.00016438,2]
[366341065,1750198243374,-490.0,0.00016438,2]
[366341066,1750198243384,-151.0,0.00016438,2]
[366341067,1750198243395,-151.0,0.00016438,2]
[366341068,1750198243405,-151.0,0.00016438,2]
[366341069,1750198243415,-151.0,0.00016438,2]
[366341070,1750198243425,-490.0,0.00016438,2]
[366341071,1750198243436,-151.0,0.00016438,2]
[366341072,1750198243446,-490.0,0.00016438,2]
[366341073,1750198243456,-151.0,0.00016438,2]
[366341074,1750198243465,-151.0,0.00016438,2]
[366341075,1750198243475,-151.0,0.00016438,2]
[366341076,1750198243486,-151.0,0.00016438,2]
[366341077,1750198243495,-490.0,0.00016438,2]
[366341078,1750198243505,-490.0,0.00016438,2]
[366341079,1750198243515,-490.0,0.00016438,2]
[366341080,1750198243526,-490.0,0.00016438,2]
[366341081,1750198243536,-814.50074,0.00016438,2]
[366341082,1750198243547,-814.50074,0.00016438,2]
[366341083,1750198243558,-814.50074,0.00016438,2]
[366341084,1750198243568,-1432.74,0.00016438,2]
[366341085,1750198243579,-814.50074,0.00016438,2]
[366341086,1750198243589,-814.50074,0.00016438,2]
[366341087,1750198243599,-814.50074,0.00016438,2]
[366341088,1750198243610,-814.50074,0.00016438,2]
[366341089,1750198243620,-1345.22,0.00016438,2]
[366341090,1750198243630,-814.50074,0.00016438,2]
[366341091,1750198243642,-814.50074,0.00016438,2]
[366341092,1750198243652,-606.49,0.00016438,2]
[366341093,1750198243661,-814.50074,0.00016438,2]
[366341094,1750198243671,-814.50074,0.00016438,2]
[366341095,1750198243681,-814.50074,0.00016438,2]
[366341096,1750198243691,-490.0,0.00016438,2]
[366341097,1750198243702,-490.0,0.00016438,2]
[366341098,1750198243714,-490.0,0.00016438,2]
[366341099,1750198243724,-460.0,0.00016438,2]
[366341100,1750198243734,-490.0,0.00016438,2]
[366341101,1750198243745,-490.0,0.00016438,2]
[366341102,1750198243755,-490.0,0.00016438,2]
[366341103,1750198243765,-490.0,0.00016438,2]
[366341104,1750198243775,-490.0,0.00016438,2]
[366341105,1750198243786,-490.0,0.00016438,2]
[366341106,1750198243797,-490.0,0.00016438,2]
[366341107,1750198243807,-666.41,0.00016438,2]
[366341108,1750198243817,-490.0,0.00016438,2]
[366341109,1750198243826,-490.0,0.00016438,2]
[366341110,1750198243836,-490.0,0.00016438,2]
[366341111,1750198243846,-490.0,0.00016438,2]
[366341112,1750198243856,-490.0,0.00016438,2]
[366341113,1750198243866,-490.0,0.00016438,2]
[366341114,1750198243876,-490.0,0.00016438,2]
[366341115,1750198243886,-490.0,0.00016438,2]
[366341116,1750198243896,-151.0,0.00016438,2]
[366341117,1750198243906,-151.0,0.00016438,2]
[366341118,1750198243916,-490.0,0.00016438,2]
[366341119,1750198243926,-151.0,0.00016438,2]
[366341120,1750198243936,-151.0,0.00016438,2]
[366341121,1750198243946,-151.0,0.00016438,2]
[366341122,1750198243956,-151.0,0.00016438,2]
[366341123,1750198243966,-490.0,0.00016438,2]
[366341124,1750198243976,-1022.59,0.00016438,2]
[366341125,1750198243986,-490.0,0.00016438,2]
[366341126,1750198243996,-490.0,0.00016438,2]
[366341127,1750198244006,-400.0,0.00016438,2]
[366341128,1750198244381,-490.0,0.00016438,2]
[366341129,1750198244392,-490.0,0.00016438,2]
[366341130,1750198244403,-490.0,0.00016438,2]
[366341131,1750198244412,-490.0,0.00016438,2]
[366341132,1750198244422,-490.0,0.00016438,2]
[366341133,1750198244432,-804.27,0.00016438,2]
[366341134,1750198244442,-472.66070411,0.00016438,2]
[366341135,1750198244452,-490.0,0.00016438,2]
[366341136,1750198244462,-490.0,0.00016438,2]
[366341137,1750198244472,-490.0,0.00016438,2]
[366341138,1750198244482,-490.0,0.00016438,2]
[366341139,1750198244491,-490.0,0.00016438,2]
[366341140,1750198244501,-490.0,0.00016438,2]
[366341141,1750198244511,-490.0,0.00016438,2]
[366341142,1750198244520,-251.94190087,0.00016438,2]
[366341143,1750198244530,-430.0,0.00016438,2]
[366341144,1750198244539,-490.0,0.00016438,2]
[366341145,1750198244549,-318.64762338,0.00016438,2]
[366341146,1750198244561,-490.0,0.00016438,2]
[366341147,1750198244571,-490.0,0.00016438,2]
[366341148,1750198244581,-490.0,0.00016438,2]
[366341149,1750198244592,-490.0,0.00016438,2]
[366341150,1750198244602,-490.0,0.00016438,2]
[366341151,1750198244613,-490.0,0.00016438,2]
[366341152,1750198244622,-490.0,0.00016438,2]
[366341153,1750198244632,-490.0,0.00016438,2]
[366341154,1750198244645,-490.0,0.00016438,2]
[366341155,1750198244656,-490.0,0.00016438,2]
[366341156,1750198244666,-596.24141665,0.00016438,2]
[366341157,1750198244675,-780.8,0.00016438,2]
[366341158,1750198244685,-490.0,0.00016438,2]
[366341159,1750198244695,-490.0,0.00016438,2]
[366341160,1750198244710,-532.44,0.00016438,2]
[366341161,1750198244720,-490.0,0.00016438,2]
[366341162,1750198244733,-194.42178028,0.00016438,2]
[366341163,1750198245236,-1160.0,0.00016327,2]
[366341164,1750198245247,-295.57821972,0.00016438,2]
[366341165,1750198245256,-490.0,0.00016438,2]
[366341166,1750198245266,-490.0,0.00016438,2]
[366341167,1750198245276,-490.0,0.00016438,2]
[366341168,1750198245285,-947.65,0.00016438,2]
[366341169,1750198245295,-440.634655,0.00016438,2]
[366341170,1750198245305,-372.57166932,0.00016438,2]
[366341171,1750198245318,-131.51833068,0.00016438,2]
[366341172,1750198245328,-597.0608855,0.00016438,2]
[366341173,1750198245338,-490.0,0.00016438,2]
[366341174,1750198245348,-608.51,0.00016438,2]
[366341175,1750198245358,-1702.06,0.00016438,2]
[366341176,1750198245368,-537.77,0.00016438,2]
[366341177,1750198245377,-490.0,0.00016438,2]
[366341178,1750198245387,-490.0,0.00016438,2]
[366341179,1750198245399,-151.0,0.00016438,2]
[366341180,1750198245408,-490.0,0.00016438,2]
[366341181,1750198245418,-490.0,0.00016438,2]
[366341182,1750198245428,-151.0,0.00016438,2]
[366341183,1750198245438,-151.0,0.00016438,2]
[366341184,1750198245448,-151.0,0.00016438,2]
[366341185,1750198245457,-500.0,0.00016438,2]
[366341186,1750198245467,-490.0,0.00016438,2]
[366341187,1750198245477,-261.533092,0.00016438,2]
[366341188,1750198245487,-500.0,0.00016438,2]
[366341189,1750198245497,-500.0,0.00016438,2]
[366341190,1750198245507,-500.0,0.00016438,2]
[366341191,1750198245517,-490.0,0.00016438,2]
[366341192,1750198245527,-500.0,0.00016438,2]
[366341193,1750198245536,-460.0,0.00016438,2]
[366341194,1750198245546,-490.0,0.00016438,2]
[366341195,1750198245556,-490.0,0.00016438,2]
[366341196,1750198245565,-1435.19,0.00016438,2]
[366341197,1750198245575,-2203.17328,0.00016438,2]
[366341198,1750198245585,-490.0,0.00016438,2]
[366341199,1750198245595,-490.0,0.00016438,2]
[366341200,1750198245605,-490.0,0.00016438,2]
[366341201,1750198245615,-430.0,0.00016438,2]
[366341202,1750198245625,-739.45,0.00016438,2]
[366341203,1750198245635,-151.0,0.00016438,2]
[366341204,1750198245646,-380.0,0.00016438,2]
[366341205,1750198245656,-151.0,0.00016438,2]
[366341206,1750198245667,-652.43,0.00016438,2]
[366341207,1750198245677,-151.0,0.00016438,2]
[366341208,1750198245688,-806.7,0.00016438,2]
[366341209,1750198245698,-490.0,0.00016438,2]